[Event "13th London Chess Classic 2023"]
[Site "London"]
[Date "2023.12.03"]
[Round "3.2"]
[White "Moussard, Jules"]
[Black "Vitiugov, Nikita"]
[Result "1-0"]
[ECO "C88"]
[WhiteElo "2639"]
[BlackElo "2712"]
[Annotator "TA"]
[PlyCount "153"]
[EventDate "2023.11.27"]
[EventType "tourn"]
[EventCountry "ENG"]
[SourceTitle "playchess.com"]
[Source "ChessBase"]
[SourceQuality "1"]
[TimeControl "40/5400+30:1800+30"]

{[%evp 28,153,23,31,25,26,33,29,46,30,64,50,50,47,51,6,23,26,10,24,15,15,55,25,86,75,86,86,86,86,79,86,86,86,86,86,86,85,94,72,73,73,81,72,87,96,133,128,129,124,122,120,113,120,114,121,122,129,137,138,161,138,191,174,175,169,182,167,173,181,168,179,201,196,177,207,303,337,338,320,317,237,376,397,596,580,587,575,806,771,783,793,2666,2889,2384,1983,2606,2288,1425,612,591,509,447,0,0,0,0,0,0,0,0,0,0,0,0,0,908,856,29961,5171,29982,29982,29982,29983,29993,29994,29994,29995]} 1. e4 {[%emt 0:03:51]} e5 {[%emt 0:00:14]} 2. Nf3 {[%emt 0:00:14]} Nc6 {[%emt 0:00:05]} 3. Bb5 {[%emt 0:00:06]} a6 {[%emt 0:00:24]} 4. Ba4 {[%emt 0:00:06]} Nf6 {[%emt 0:00:05]} 5. O-O {[%emt 0:00:07]} Be7 {[%emt 0:00:03]} 6. Re1 {[%emt 0:00:06]} b5 {[%emt 0:00:10]} 7. Bb3 {[%emt 0:00:07]} O-O {[%emt 0:00:09]} 8. a4 {[%emt 0:00:07]} b4 {[%emt 0:00:36]} 9. d3 {[%emt 0:00:22]} d6 {[%emt 0:00:25]} 10. Nbd2 {[%emt 0:00:23]} Na5 {[%emt 0:00:46]} 11. Ba2 {[%emt 0:00:07]} c5 {[%emt 0:00:07]} 12. c3 {[%emt 0:00:41]} Rb8 {[%emt 0:03:41]} 13. d4 {[%emt 0:00:23]} Qc7 {[%emt 0:00:51]} 14. dxe5 {[%emt 0:00:14]} dxe5 {[%emt 0:00:06]} 15. Nc4 {[%emt 0:00:06]} Rd8 {[%emt 0:08:01]} 16. Qe2 {[%emt 0:00:31]} b3 {[%emt 0:02:40]} 17. Nxa5 $1 {[%emt 0:00:07]} (17. Bb1 Nxc4 18. Qxc4 Be6 $17) 17... bxa2 {[%emt 0:00:23]} 18. Nc4 {[%emt 0:00:21]} Be6 {[%emt 0:03:15]} 19. Rxa2 {[%emt 0:00:41]} (19. Nfxe5 {with more complications.} Bd6 20. Nf3 Bf4 21. Bxf4 Qxf4 22. Nfe5) 19... Nd7 {[%emt 0:11:46]} 20. Ra1 {[%emt 0:06:25]} f6 {[%emt 0:00:54]} 21. Be3 {[%emt 0:02:56]} Nb6 {[%emt 0:00:58]} 22. Nfd2 {[%emt 0:19:53]} Nxc4 {[%emt 0:01:05]} 23. Nxc4 {[%emt 0:00:05]} Qc6 {[%emt 0:01:20]} 24. f3 {[%emt 0:02:44]} Bf7 {[%emt 0:00:19]} 25. b3 {[%emt 0:06:09]} Rd7 {[%emt 0:06:52]} (25... Rxb3 $2 26. Na5 Qc8 27. Nxb3 Bxb3 28. c4 $18) (25... a5 $11 {keeps the balance.}) 26. Reb1 {[%emt 0:08:00]} Rbd8 {[%emt 0:04:32]} 27. Rd1 {[%emt 0:03:27]} Qb7 {[%emt 0:05:59]} 28. Rxd7 {[%emt 0:00:47]} Qxd7 {[%emt 0:00:30]} 29. Kf2 {[%emt 0:02:06]} Rb8 {[%emt 0:02:43]} 30. Rb1 {[%emt 0:02:21]} Qc7 {[%emt 0:04:57]} 31. Rb2 {[%emt 0:01:47]} h5 {[%emt 0:03:12]} 32. Nd2 {[%emt 0:06:16]} Qa5 {[%emt 0:00:40]} 33. c4 {[%emt 0:02:47]} Qb4 {[%emt 0:03:19]} 34. Qd3 {[%emt 0:03:23]} Be6 {[%emt 0:02:46]} 35. Rc2 {[%emt 0:06:05]} Qb7 {[%emt 0:02:51]} 36. Rc3 {[%emt 0:03:35]} h4 {[%emt 0:07:52]} 37. Qc2 {[%emt 0:05:28]} g6 {[%emt 0:02:54]} 38. Rd3 {[%emt 0:03:44]} f5 {[%emt 0:04:30]} 39. Ke1 {[%emt 0:02:19]} h3 {[%emt 0:01:37]} 40. g3 {[%emt 0:00:00]} (40. gxh3 Kf7 $14) 40... Rf8 {[%emt 0:00:00]} 41. Qc3 {[%emt 0:03:18]} Qc7 {[%emt 0:03:01]} 42. Kd1 {[%emt 0:08:00]} Bf6 {[%emt 0:09:13]} 43. Kc2 {[%emt 0:02:03]} Rf7 {[%emt 0:00:50]} 44. Qa1 {[%emt 0:04:54]} Qc6 {[%emt 0:00:24]} (44... Be7 $16 45. g4 fxe4 46. fxe4 Bc8) 45. Qg1 {[%emt 0:02:32]} Be7 {[%emt 0:01:11]} 46. g4 {[%emt 0:03:07]} fxg4 {[%emt 0:02:23]} 47. fxg4 {[%emt 0:00:05]} Qc8 {[%emt 0:00:04]} 48. Qg3 {[%emt 0:08:23]} Bxg4 {[%emt 0:00:34]} 49. Qxe5 {[%emt 0:00:05]} Qe6 {[%emt 0:06:30]} 50. Qg3 {[%emt 0:00:05]} Be2 {[%emt 0:06:06]} 51. Rd5 {[%emt 0:00:04]} Qg4 {[%emt 0:00:04]} (51... Bf3 {is a better defense.}) 52. Qb8+ $18 {[%emt 0:01:26]} (52. Bxc5 $2 Qxg3 53. Bxe7 Rxe7 $19) 52... Kg7 {[%emt 0:05:26]} 53. Bxc5 {[%emt 0:01:04]} Bxc5 {[%emt 0:00:49]} 54. Qe5+ {[%emt 0:00:55]} Kh7 {[%emt 0:00:31]} (54... Kh6 $142) 55. Rxc5 $18 {[%emt 0:00:05]} Qf4 {[%emt 0:01:56]} (55... Bd1+ $142 56. Kc3 Qf4 57. Qxf4 Rxf4) 56. Qxf4 $18 {[%emt 0:09:55]} Rxf4 {[%emt 0:00:12]} 57. b4 {[%emt 0:00:02]} Rf2 {[%emt 0:01:45]} 58. b5 {[%emt 0:00:04]} axb5 {[%emt 0:06:29]} 59. axb5 {[%emt 0:00:04]} Rxh2 {[%emt 0:00:23]} 60. b6 {[%emt 0:00:12]} Bf3 {[%emt 0:01:48]} 61. Re5 {[%emt 0:00:23]} Rxd2+ {[%emt 0:00:42]} 62. Kxd2 {[%emt 0:00:03]} h2 {[%emt 0:00:04]} 63. Re7+ {[%emt 0:00:41]} (63. b7 $142 h1=Q 64. b8=Q (64. b8=B $2 Qd1+ 65. Kc3 Qc1+ 66. Kd4 Qb2+ 67. Ke3 Qb3+ 68. Kd4 Qxb8 $19)) 63... Kh6 $18 {[%emt 0:00:03] [#]} 64. Re8 $1 {[%emt 0:01:48]} (64. b7 h1=Q 65. b8=Q (65. b8=B Qd1+ 66. Kc3 Qa1+ 67. Kb3 Bd1+ 68. Kb4 Qb2+ 69. Kc5 Qa3+ {[%mdl 64] Skewer} 70. Kd5 Qxe7 $19) 65... Qd1+ 66. Ke3 Qe2+ 67. Kd4 Qd2+ 68. Kc5 Qe3+ 69. Kd5 Qd3+ 70. Ke6 (70. Kc5 Qe3+ 71. Kd5 Qd3+ 72. Ke6 Qxe4+ 73. Qe5 Qxc4+ 74. Kf6 Qh4+ 75. Kf7 Qc4+ 76. Kf8 Qc8+ 77. Re8 Qf5+ 78. Qxf5 gxf5 $11) 70... Qxe4+ 71. Qe5 (71. Kf7 Qxc4+ 72. Kf8 Qd4 $11) 71... Qxc4+ 72. Kf6 Qh4+ 73. Kf7 Qc4+ 74. Kf8 Qc8+ 75. Re8 Qf5+ 76. Qxf5 gxf5 $11) 64... Kg5 {[%emt 0:03:41] [#]} 65. Rh8 $2 {[%emt 0:03:47]} ({White must play} 65. b7 $1 $18 {[%cal Rb7b8]} h1=Q 66. b8=Q (66. b8=B $2 Qa1 $19) 66... Qd1+ 67. Ke3 Qe1+ 68. Kd4 (68. Kxf3 Qc3+ 69. Ke2 Qc2+ 70. Kf1 Qd1+ 71. Kg2 Qe2+ 72. Kg3 Qe3+ 73. Kh2 Qe2+ 74. Kh1 Qf3+ 75. Kg1 Qd1+ 76. Kf2 Qd2+ 77. Kg3 Qe3+ 78. Kg2 Qe2+ 79. Kh1 Qf3+ 80. Kg1 Qe3+ 81. Kh2 Qe2+ 82. Kh3 Qg4+ 83. Kh2 Qe2+ $11)) 65... Bh5 $11 {[%emt 0:00:05]} 66. b7 {[%emt 0:00:02]} h1=Q {[%emt 0:00:04]} 67. b8=Q {[%emt 0:00:03]} (67. b8=B $2 Qd1+ 68. Ke3 Qb3+ 69. Kd4 Qb2+ 70. Kd5 Qxh8 $19) 67... Qd1+ $1 {[%emt 0:01:12]} 68. Kc3 {[%emt 0:00:09]} (68. Ke3 $5 {[%cal Rb8f4]} Qg1+ 69. Kd2 (69. Kd3 Qd1+ 70. Ke3 Qe1+ 71. Kd4 Qd2+ 72. Ke5 Qf4+ 73. Ke6 Qf6+ 74. Kd7 Qd4+ 75. Kc6 Qf6+ 76. Kc7 Qe5+ 77. Kc6 Qf6+ 78. Kd7 Qd4+ 79. Ke7 Qg7+ 80. Ke6 Qf6+ 81. Kd7 $11) 69... Qd1+ 70. Kc3 Qe1+ 71. Kc2 Qd1+ 72. Kc3 Qe1+ 73. Kd4 Qd2+ 74. Ke5 (74. Kc5 Qf2+ 75. Kc6 Qf6+ 76. Kc7 Qe5+ 77. Kb7 Qb2+ 78. Ka8 Qa1+ 79. Kb7 Qb2+ 80. Kc7 Qe5+ 81. Kd7 Qd4+ 82. Ke7 Qg7+ 83. Kd6 Qd4+ 84. Ke7 Qg7+ 85. Ke6 Qf6+ 86. Kd7 Qd4+ 87. Ke7 $11) 74... Qf4+ 75. Ke6 (75. Kd5 Qf7+ 76. Kd4 Qf2+ 77. Kd3 Qf3+ 78. Kc2 Qxe4+ 79. Kb3 Qb1+ 80. Ka3 Qa1+ 81. Kb4 Qb1+ 82. Ka5 Qa2+ 83. Kb6 Qf2+ 84. c5 Qb2+ 85. Kc6 Bf3+ 86. Kc7 Qe5+ 87. Kb6 Qb2+ 88. Ka7 Qa3+ 89. Kb6 Qb4+ 90. Ka6 Be2+ 91. Ka7 Qxc5+ 92. Qb6 Qe7+ 93. Qb7 Qc5+ 94. Qb6 Qe7+ 95. Qb7 Qc5+ 96. Qb6 $11) 75... Qf6+ 76. Kd7 (76. Kd5 Qf7+ 77. Ke5 Qf6+ 78. Kd5 Qf7+ 79. Kd4 Qf2+ 80. Kd3 Qf3+ 81. Kc2 Qxe4+ 82. Kb3 Qd3+ 83. Kb2 Qd2+ 84. Kb3 Qd3+ 85. Kb4 Qb1+ 86. Kc3 Qe1+ 87. Kd4 Qf2+ 88. Kd5 Qf3+ 89. Kd6 Qf6+ 90. Kc7 Qf7+ 91. Kd8 Qf6+ 92. Kd7 Qf7+ 93. Kd8 Qf6+ 94. Kd7 Qd4+ 95. Ke7 Qf6+ 96. Kd7 $11) 76... Qd4+ 77. Ke7 Qg7+ 78. Ke6 Qf6+ 79. Kd7 (79. Kd5 Qf7+ 80. Kd6 Qf6+ 81. Kd7 Qd4+ 82. Ke7 Qg7+ 83. Ke6 Qf6+ $11) 79... Qd4+ 80. Ke7 Qg7+ 81. Ke6 Qf6+ $11) 68... Qe1+ {[%emt 0:01:48]} 69. Kd4 {[%emt 0:00:27]} (69. Kb2 $5 Qd2+ $8 70. Kb3 Bd1+ 71. Ka3 Qc3+ 72. Ka2 Qxc4+ 73. Ka1 Qa6+ 74. Kb1 Qd3+ 75. Ka2 Qc4+ 76. Kb1 Qxe4+ 77. Ka2 Qa4+ 78. Kb2 $11) 69... Qd2+ {[%emt 0:00:54]} 70. Kc5 {[%emt 0:00:28]} Qe3+ {[%emt 0:00:13]} 71. Kb4 {[%emt 0:00:32]} (71. Kd5 $5 Qd3+ $8 72. Ke6 (72. Kc5 Qe3+ 73. Kd6 Qd4+ 74. Kc7 Qxc4+ 75. Kd8 Qd4+ 76. Kc7 Qc4+ 77. Kd8 Qd4+ 78. Ke7 Qf6+ 79. Kd7 Qd4+ 80. Ke7 Qf6+ 81. Kd7 Qd4+ 82. Ke7 $11) 72... Qxc4+ 73. Ke5 Qc3+ 74. Kd5 Qd3+ 75. Ke6 Bg4+ 76. Ke5 Qc3+ 77. Kd5 Qd3+ 78. Kc5 Qe3+ 79. Kd5 Qd3+ 80. Ke5 Qc3+ 81. Kd5 Qd3+ $11) 71... Qe1+ $2 {[%emt 0:02:00][%mdl 8192]} (71... Qd2+ $11 72. Kb5 Qb2+ 73. Ka6 Qa3+ 74. Kb6 Qb2+ 75. Kc7 Qe5+ 76. Kc6 Qf6+ 77. Kc5 Qf2+ 78. Kd6 Qf6+ 79. Kd7 (79. Kd5 Qf7+ 80. Ke5 Qf6+ 81. Kd5 Qf7+ 82. Kd6 Qf6+ 83. Kc7 Qe5+ 84. Kb7 Qb2+ 85. Ka8 Qa1+ 86. Kb7 Qb2+ 87. Kc7 Qe5+ $11) 79... Qd4+ 80. Ke7 Qf6+ 81. Kd7 Qd4+ 82. Ke7 Qf6+ 83. Kd7) 72. Kb5 $18 {[%emt 0:00:48]} Qxe4 {[%emt 0:00:59]} 73. Qg3+ {[%emt 0:00:28]} Bg4 {[%emt 0:00:58]} 74. Qh4+ {[%emt 0:00:28]} Kf4 {[%emt 0:00:02]} 75. Rf8+ {[%emt 0:00:05]} Ke3 {[%emt 0:00:14]} 76. Qf2+ {[%emt 0:00:04]} Kd3 {[%emt 0:00:06]} 77. Rd8+ {[%emt 0:00:04]} ({Not} 77. Qg3+ Kc2 $18) 1-0

[Event "13th London Chess Classic 2023"]
[Site "London"]
[Date "2023.12.03"]
[Round "3.3"]
[White "Adams, Michael"]
[Black "Bartel, Mateusz"]
[Result "1-0"]
[ECO "B12"]
[WhiteElo "2670"]
[BlackElo "2651"]
[Annotator "TA"]
[PlyCount "73"]
[EventDate "2023.11.27"]
[EventType "tourn"]
[EventCountry "ENG"]
[SourceTitle "playchess.com"]
[Source "ChessBase"]
[SourceQuality "1"]
[TimeControl "40/5400+30:1800+30"]

{[%evp 10,73,36,33,45,29,40,25,42,34,46,50,57,52,57,70,53,55,72,53,53,61,47,51,75,31,33,29,56,54,60,52,45,27,37,19,70,79,143,143,143,141,141,135,143,134,258,225,348,292,1447,543,1447,1358,5410,864,2356,818,1087,1098,917,810,29985,29986,29989,29987]} 1. e4 {[%emt 0:00:04]} c6 {[%emt 0:00:06]} 2. d4 {[%emt 0:00:06]} d5 {[%emt 0:00:05]} 3. e5 {[%emt 0:00:10]} Bf5 {[%emt 0:00:07]} 4. Nf3 {[%emt 0:00:06]} e6 {[%emt 0:00:10]} 5. Be2 {[%emt 0:00:05]} Nd7 {[%emt 0:00:16]} 6. O-O {[%emt 0:00:25]} a5 {[%emt 0:00:06] outshines the older 6...Ne7. B12: Caro-Kann: Advance Variation.} 7. a4 {[%emt 0:05:08]} f6 {[%emt 0:00:16]} 8. Be3 $5 {[%emt 0:05:53][%mdl 4] [#] A promising side line.} Qb6 $146 {[%emt 0:09:41] White has an edge.} ({Predecessor:} 8... fxe5 9. dxe5 Bc5 10. Bxc5 Nxc5 11. Nd4 Ne7 12. Bh5+ g6 13. Be2 Qb6 14. g4 Be4 {0-1 Kryvoruchko,Y (2658)-Eljanov,P (2697) Bundesliga 2223 2022 (1.1)}) 9. Nbd2 {[%emt 0:09:27][%cal Bb1d2,Bd2b3,Bb3d4][%mdl 32]} fxe5 {[%emt 0:05:49]} 10. Nxe5 {[%emt 0:07:45]} ({Don't play} 10. dxe5 Bc5 $11) 10... Nxe5 {[%emt 0:00:12]} 11. dxe5 {[%emt 0:00:03]} Bc5 {[%emt 0:00:46]} 12. Bxc5 {[%emt 0:00:48]} Qxc5 {[%emt 0:00:04]} 13. Nb3 {[%emt 0:03:39]} Qe7 {[%emt 0:00:33]} 14. Bh5+ {[%emt 0:07:57]} g6 {[%emt 0:02:01]} 15. Be2 {[%emt 0:00:05] And now g4 would win.} h5 {[%emt 0:02:05]} 16. Qd2 {[%emt 0:05:37]} Qc7 {[%emt 0:05:23]} 17. Bd3 {[%emt 0:02:55]} Nh6 {[%emt 0:00:19]} 18. Nd4 {[%emt 0:02:26]} Qe7 {[%emt 0:02:14]} ({But not} 18... Qxe5 19. Bxf5 Nxf5 20. Nxe6 $16) 19. Ra3 {[%emt 0:01:12][%cal Ba1a3,Ba3d3,Bd3g3,Bg3b3][%mdl 32]} Bxd3 {[%emt 0:07:29]} 20. Rxd3 {[%emt 0:00:21]} Nf5 {[%emt 0:00:07]} 21. Nxf5 {[%emt 0:03:50]} gxf5 {[%emt 0:00:13]} 22. c4 {[%emt 0:00:12][%cal Rc4d5]} Kf7 {[%emt 0:08:04]} (22... O-O-O $11) 23. cxd5 $14 {[%emt 0:03:01]} exd5 {[%emt 0:01:10]} (23... cxd5 $142 24. Rc1 Rhc8) 24. Re1 $16 {[%emt 0:10:05]} Ke6 {[%emt 0:02:20]} 25. Rg3 {[%emt 0:02:19]} Qf7 {[%emt 0:00:02] [#] Repels Rg6+. Black is weak on the dark squares} 26. b4 $1 {[%emt 0:05:19][%cal Bb2b4,Bb4a5][%mdl 32] White has more active pieces.} h4 {[%emt 0:04:20] [#]} 27. Rb3 {[%emt 0:01:34] The board is on fire.} f4 {[%emt 0:07:28]} (27... axb4 $16 {was called for.} 28. Rxb4 (28. Qxb4 Qe7 $14) 28... Rag8) 28. bxa5 {[%emt 0:09:36] Qb4 is the strong threat.} Rag8 {[%emt 0:00:48]} (28... Rhg8 $142 29. Kh1 Rac8) 29. Qb4 {[%emt 0:03:02] Threatens to win with a6.} Rh7 $2 {[%emt 0:14:36]} (29... Qg7 30. g3 (30. Qxb7 $2 Qxg2#) 30... Qe7) 30. Qd6+ $18 {[%emt 0:03:45]} Kf5 {[%emt 0:00:04] [#]} 31. Rxb7 $3 {[%emt 0:02:10][%mdl 576] Deflection} Qxb7 {[%emt 0:01:51]} (31... Qg6 32. Qxg6+) 32. Qf6+ {[%emt 0:00:22]} Kg4 {[%emt 0:00:02]} 33. Qe6+ {[%emt 0:00:15]} (33. e6 $142 Rhg7 34. e7 Rxe7 35. h3+ (35. Qxe7 Qxe7 36. Rxe7 Ra8 $11) 35... Kh5 36. Rxe7 Qb1+ 37. Kh2) 33... Kh5 {[%emt 0:00:42]} 34. Qxg8 {[%emt 0:00:05] White threatens e6 and mate.} Rg7 {[%emt 0:01:38] Against e6} 35. Qf8 {[%emt 0:01:40][%cal Oe5e6] Intending e6! and mate.} d4 {[%emt 0:02:29]} 36. e6 {[%emt 0:01:44]} c5 {[%emt 0:00:40] [#]} 37. Qxg7 $3 {[%emt 0:02:03][%mdl 576] Remove Defender. Ingenious play by Adams!   Weighted Error Value: White=0.12 (very precise) /Black=0.38} 1-0

[Event "13th London Chess Classic 2023"]
[Site "London"]
[Date "2023.12.03"]
[Round "3.4"]
[White "McShane, Luke J"]
[Black "Niemann, Hans Moke"]
[Result "1/2-1/2"]
[ECO "C67"]
[WhiteElo "2626"]
[BlackElo "2659"]
[Annotator "TA"]
[PlyCount "74"]
[EventDate "2023.11.27"]
[EventType "tourn"]
[EventCountry "ENG"]
[SourceTitle "playchess.com"]
[Source "ChessBase"]
[SourceQuality "1"]
[TimeControl "40/5400+30:1800+30"]

{[%evp 16,74,10,10,19,12,18,11,18,18,17,17,15,15,39,13,18,21,17,13,14,6,6,6,1,0,0,0,0,0,0,0,0,0,0,0,0,0,0,0,0,0,0,0,0,0,0,0,0,0,0,0,0,0,0,0,0,0,0,0,0]} 1. e4 {[%emt 0:02:07]} e5 {[%emt 0:00:13]} 2. Nf3 {[%emt 0:00:05]} Nc6 {[%emt 0:00:12]} 3. Bb5 {[%emt 0:00:06]} Nf6 {[%emt 0:00:32]} 4. O-O {[%emt 0:00:57][%cal Bh1f1,Bf1e1,Be1e5][%mdl 32]} Nxe4 {[%emt 0:00:07]} 5. Re1 {[%emt 0:00:04]} Nd6 {[%emt 0:00:11]} 6. Nxe5 {[%emt 0:00:06]} Be7 {[%emt 0:00:13]} 7. Bf1 {[%emt 0:00:05]} Nxe5 {[%emt 0:00:08]} 8. Rxe5 {[%emt 0:00:07]} O-O {[%emt 0:00:08]} 9. d4 {[%emt 0:00:07]} Bf6 {[%emt 0:00:06] C67: Ruy Lopez: Berlin Defence: 4 0-0 Nxe4.} 10. Re2 {[%emt 0:00:14]} b6 {[%emt 0:00:22]} 11. Re1 {[%emt 0:01:12]} Bb7 {[%emt 0:00:09]} 12. Bf4 {[%emt 0:00:46]} Ne4 {[%emt 0:00:11]} 13. Nd2 {[%emt 0:00:51]} Re8 {[%emt 0:00:11]} 14. c3 {[%emt 0:06:59]} d6 {[%emt 0:00:59] [#]} (14... Bg5 {looks sharper.} 15. Qg4 h5 16. Qf5 Bxf4 17. Qxf4 Qf6) 15. Nxe4 $146 {[%emt 0:09:14]} (15. Bb5 $5 {[%cal Rb5e8]} Re7 16. Nxe4 Rxe4 17. Rxe4 Bxe4 18. Qe2 $14) ({Predecessor:} 15. Bb5 Re7 16. Nxe4 Bxe4 17. d5 Bf5 18. Bc6 Rb8 19. Qa4 a5 20. Bd2 Bd7 21. Rxe7 Bxc6 22. Qxc6 Bxe7 {1-0 Fedoseev,V (2719)-Vokhidov,S (2480) Wch Rapid St Petersburg 2018 (6)}) 15... Rxe4 {[%emt 0:00:35] The position is equal.} 16. Rxe4 {[%emt 0:02:40]} Bxe4 {[%emt 0:00:15]} 17. Qa4 {[%emt 0:00:29]} a6 {[%emt 0:06:03]} 18. Qb3 {[%emt 0:01:59]} Qd7 {[%emt 0:01:40]} 19. Re1 {[%emt 0:00:42]} Bb7 {[%emt 0:04:06]} 20. Bc4 {[%emt 0:18:23]} b5 {[%emt 0:00:41]} 21. Bd5 {[%emt 0:01:53]} Bc6 {[%emt 0:00:16]} 22. g3 {[%emt 0:11:35]} Re8 {[%emt 0:01:54]} 23. Rxe8+ {[%emt 0:01:35]} Qxe8 {[%emt 0:00:11]} 24. Be3 {[%emt 0:01:03]} h5 {[%emt 0:00:57]} 25. h4 {[%emt 0:03:19]} g6 {[%emt 0:00:24]} 26. Kh2 {[%emt 0:08:21]} Kg7 {[%emt 0:00:52]} 27. Bxc6 {[%emt 0:02:02]} Qxc6 $11 {[%emt 0:00:09][%mdl 4096] Endgame KQB-KQB} 28. d5 {[%emt 0:00:03]} Qd7 {[%emt 0:04:18]} 29. c4 {[%emt 0:10:27]} Be5 {[%emt 0:02:53]} 30. cxb5 {[%emt 0:02:08]} axb5 {[%emt 0:02:56]} 31. Qc2 {[%emt 0:02:59]} Qc8 {[%emt 0:05:45]} 32. b3 {[%emt 0:04:40]} Qa8 {[%emt 0:00:43]} 33. Qd3 {[%emt 0:02:39]} b4 {[%emt 0:02:27]} 34. Qc4 {[%emt 0:00:55]} Qxa2 {[%emt 0:00:42]} 35. Qxb4 {[%emt 0:00:06]} Qa6 {[%emt 0:07:01]} 36. Qc4 {[%emt 0:01:35]} Qxc4 {[%emt 0:00:11]} 37. bxc4 {[%emt 0:00:04]} Kf8 {[%emt 0:00:20] Not much happened in this game.   Weighted Error Value: White=0.02 (flawless) /Black=0.02 (flawless)} 1/2-1/2

[Event "13th London Chess Classic 2023"]
[Site "London"]
[Date "2023.12.03"]
[Round "3.5"]
[White "Royal, Shreyas"]
[Black "Tabatabaei, M. Amin"]
[Result "1-0"]
[ECO "D38"]
[WhiteElo "2404"]
[BlackElo "2694"]
[Annotator "TA"]
[PlyCount "106"]
[EventDate "2023.11.27"]
[EventType "tourn"]
[EventCountry "ENG"]
[SourceTitle "playchess.com"]
[Source "ChessBase"]
[SourceQuality "1"]
[TimeControl "40/5400+30:1800+30"]

{[%evp 16,106,9,10,6,4,9,7,11,0,0,0,0,0,0,0,0,0,19,0,9,0,0,0,0,0,15,18,10,24,94,98,127,104,232,156,191,191,191,191,191,188,188,196,194,201,199,188,206,196,236,242,279,227,247,268,289,289,289,289,289,289,291,186,277,268,397,414,418,413,361,381,401,283,595,580,1151,860,1189,900,29971,29973,29972,29973,29973,29974,29974,29975,29969,29972,29962,29955,29940]} 1. d4 {[%emt 0:00:04]} Nf6 {[%emt 0:01:55]} 2. c4 {[%emt 0:00:06]} e6 {[%emt 0:00:05]} 3. Nc3 {[%emt 0:00:25]} d5 {[%emt 0:01:13]} 4. cxd5 {[%emt 0:00:08]} exd5 {[%emt 0:00:05]} 5. Bg5 {[%emt 0:00:09]} Bb4 {[%emt 0:00:05]} 6. Nf3 {[%emt 0:00:57]} h6 {[%emt 0:00:56]} 7. Bxf6 {[%emt 0:00:21]} Qxf6 {[%emt 0:00:58]} 8. Qb3 {[%emt 0:00:08]} Qd6 {[%emt 0:00:59]} 9. a3 {[%emt 0:01:16]} Bxc3+ {[%emt 0:00:30] D38: Queen's Gambit Declined: Ragozin Defence (4 Nf3 Bb4).} 10. Qxc3 {[%emt 0:00:07]} O-O {[%emt 0:00:42]} 11. e3 {[%emt 0:01:30]} Bf5 {[%emt 0:00:06] The position is equal.} 12. Rc1 {[%emt 0:03:15]} c6 {[%emt 0:00:28] [#]} 13. Ne5 $146 {[%emt 0:05:46]} ({Predecessor:} 13. Bd3 Bxd3 14. Qxd3 Nd7 15. O-O Rfe8 16. Qb3 Rab8 17. Rfd1 {½-½ Vaitonis,V (2437)-Loeschnauer,R (2469) W-ch37 sf03 email 2013}) 13... Nd7 {[%emt 0:05:55][%cal Bb8d7,Bd7f6,Bf6e4][%mdl 32]} 14. Bd3 {[%emt 0:10:05]} Bxd3 {[%emt 0:03:07]} 15. Nxd3 {[%emt 0:00:28]} Rfe8 {[%emt 0:02:41]} 16. O-O {[%emt 0:01:06]} Nf6 {[%emt 0:04:07]} 17. b4 {[%emt 0:10:53]} a6 {[%emt 0:03:30]} 18. a4 {[%emt 0:03:38]} Ne4 {[%emt 0:00:09]} 19. Qb2 {[%emt 0:02:21]} Qe7 {[%emt 0:00:56]} 20. b5 {[%emt 0:11:58]} cxb5 {[%emt 0:00:22]} 21. axb5 {[%emt 0:00:07]} a5 {[%emt 0:00:03]} 22. b6 {[%emt 0:02:08]} Qd6 {[%emt 0:10:48]} (22... Rec8 $11 {keeps the balance.}) 23. Rc7 $1 $16 {[%emt 0:05:09]} Re7 {[%emt 0:01:42]} 24. Rfc1 {[%emt 0:01:05]} Rae8 {[%emt 0:17:46] A mistake that costs the game.} (24... a4 $16) 25. Nc5 {[%emt 0:06:11]} Nxc5 {[%emt 0:05:38]} 26. dxc5 {[%emt 0:04:47]} (26. R1xc5 Ra8 27. Qb1 g6 $16) 26... Qe6 {[%emt 0:00:13] [#]} 27. Rxe7 {[%emt 0:02:21]} Qxe7 $18 {[%emt 0:00:03][%mdl 4096] Endgame KQR-KQR} 28. Qb5 {[%emt 0:01:55]} Rb8 {[%emt 0:15:45]} 29. Qxa5 {[%emt 0:06:18]} Qd7 {[%emt 0:00:02]} 30. h3 {[%emt 0:03:24][%cal Bh2h3,Bh3h4][%mdl 32] Threatens to win with Qa7.} Qc6 {[%emt 0:00:25]} 31. Qc3 {[%emt 0:01:38]} Rc8 {[%emt 0:00:23]} 32. Qe5 {[%emt 0:01:44]} g6 {[%emt 0:00:40]} 33. h4 {[%emt 0:00:46]} h5 {[%emt 0:00:06]} 34. Kh2 {[%emt 0:02:56]} Re8 {[%emt 0:01:44]} 35. Qd6 {[%emt 0:00:35] Hoping for Qxc6.} Qxd6+ {[%emt 0:00:12]} 36. cxd6 {[%emt 0:00:04] d7 is the strong threat. KR-KR} Rd8 {[%emt 0:00:02] Dodges d7} 37. Rc7 {[%emt 0:00:05] aiming for d7.} Rxd6 {[%emt 0:00:04]} 38. Rxb7 {[%emt 0:00:03]} Kg7 {[%emt 0:00:18]} 39. Kg3 {[%emt 0:01:49]} Kf6 {[%emt 0:01:40]} (39... d4 $142 40. exd4 Rxd4) 40. Kf3 {[%emt 0:00:00]} d4 {[%emt 0:00:00] [#]} (40... Rc6 $142 41. e4 Ke5) 41. Ke2 $1 {[%emt 0:08:45]} dxe3 {[%emt 0:20:32]} 42. Kxe3 {[%emt 0:00:10]} Ke6 {[%emt 0:00:06]} 43. f3 {[%emt 0:04:47]} Kf6 {[%emt 0:01:50]} 44. g3 {[%emt 0:03:36]} g5 $2 {[%emt 0:04:07]} (44... Ke6 {is tougher.} 45. Ke4 Kf6) 45. Rb8 {[%emt 0:06:29]} gxh4 {[%emt 0:03:20]} 46. Rh8 {[%emt 0:01:45] White threatens b7 and mate.} ({Less strong is} 46. gxh4 Kf5 47. Rb7 Ke6 $18) 46... Re6+ {[%emt 0:00:06]} 47. Kf4 {[%emt 0:01:12] b7 would kill now.} hxg3 {[%emt 0:05:24]} 48. b7 {[%emt 0:00:04] White mates.} g2 {[%emt 0:00:05]} 49. b8=Q {[%emt 0:00:24]} g1=Q {[%emt 0:00:07]} 50. Qd8+ {[%emt 0:00:14]} (50. Rxh5 Qd4+ 51. Kg3 Qg1+ 52. Kh3 Qf1+ 53. Kg4 Qg1+ 54. Kh4 Qf2+ 55. Kg4 Qg1+ 56. Kh4 Qf2+ 57. Kg4 Qg1+ $11) 50... Re7 {[%emt 0:00:05]} 51. Rh6+ {[%emt 0:00:23]} ({Inferior is} 51. Rxh5 Qe3+ 52. Kg3 (52. Kg4 Qg1+ 53. Kh3 Qh1+ 54. Kg4 Qg1+ 55. Kf4 Qe3+ 56. Kg4 Qg1+ $11) 52... Qg1+ 53. Kh4 Qh2+ 54. Kg4 Qg1+ 55. Kh3 Qh1+ 56. Kg4 Qg1+ 57. Kh4 Qh2+ 58. Kg4 Qg1+ $11) 51... Qg6 {[%emt 0:00:06]} 52. Qd4+ {[%emt 0:00:21]} Ke6 {[%emt 0:00:05]} 53. Qb6+ {[%emt 0:00:03]} Kd5 {[%emt 0:00:37] Weighted Error Value: White=0.08 (flawless) /Black=0.38} 1-0